[Event "PanAm Intercolleagiate-ch 2019"]
[Site "Charlotte"]
[Date "2019.12.30"]
[Round "6.13"]
[White "Quesada Perez, Yuniesky"]
[Black "Bajarani, Ulvi"]
[Result "1-0"]
[ECO "C15"]
[WhiteElo "2601"]
[BlackElo "2468"]
[Annotator "ChessBase"]
[PlyCount "101"]
[EventDate "2019.12.27"]
[EventType "team-tourn"]
[EventCountry "USA"]
[SourceTitle "playchess.com"]
[Source "ChessBase"]
[SourceQuality "1"]
[TimeControl "5400+30"]

1. e4 {[%emt 0:00:00]} e6 {[%emt 0:01:13]} 2. d4 {[%emt 0:00:00]} d5 {[%emt 0:00:08]} 3. Nc3 {[%emt 0:00:21]} Bb4 {[%emt 0:00:06]} 4. Nge2 {[%emt 0:01:46]} Nf6 {[%emt 0:01:39]} 5. e5 {[%emt 0:00:34]} Nfd7 {[%emt 0:00:06]} 6. f4 {[%emt 0:00:49]} O-O {[%emt 0:02:04]} 7. a3 {[%emt 0:01:05]} Be7 {[%emt 0:00:13]} 8. Be3 {[%emt 0:00:32]} c5 {[%emt 0:02:05]} 9. dxc5 {[%emt 0:03:32]} Nxc5 {[%emt 0:00:26]} 10. Qd2 {[%emt 0:01:21]} Nc6 {[%emt 0:01:49]} 11. Nd4 {[%emt 0:01:00]} Bd7 {[%emt 0:02:55]} 12. Be2 {[%emt 0:01:16]} a5 {[%emt 0:07:05]} 13. O-O {[%emt 0:03:14]} a4 {[%emt 0:01:35]} 14. Kh1 {[%emt 0:06:24]} b6 {[%emt 0:01:15]} 15. Rad1 {[%emt 0:01:05]} Qb8 {[%emt 0:12:32]} 16. Qe1 {[%emt 0:04:34]} Nxd4 {[%emt 0:07:52]} 17. Bxd4 {[%emt 0:00:07]} Bc6 {[%emt 0:00:06]} 18. Qf2 {[%emt 0:04:30]} Qb7 {[%emt 0:00:18]} 19. Qe3 {[%emt 0:03:24]} Rab8 {[%emt 0:00:33]} 20. Qh3 {[%emt 0:14:08]} Ne4 {[%emt 0:05:40]} 21. Nxe4 {[%emt 0:09:48]} dxe4 {[%emt 0:00:08]} 22. Qe3 {[%emt 0:00:12]} Rfd8 {[%emt 0:01:16]} 23. c3 {[%emt 0:02:15]} h6 {[%emt 0:02:12]} 24. Bc4 {[%emt 0:02:32]} Bd5 {[%emt 0:01:30]} 25. Bxd5 {[%emt 0:02:01]} Qxd5 {[%emt 0:00:26]} 26. Rfe1 {[%emt 0:00:16]} Qb3 {[%emt 0:03:04]} 27. Rd2 {[%emt 0:00:17]} Bc5 {[%emt 0:00:26]} 28. Qxe4 {[%emt 0:00:49]} b5 {[%emt 0:00:50]} 29. Ree2 {[%emt 0:03:45]} Qc4 {[%emt 0:01:59]} 30. h3 {[%emt 0:18:16]} Bxd4 {[%emt 0:01:43]} 31. cxd4 {[%emt 0:00:37]} b4 {[%emt 0:00:40]} 32. Kh2 {[%emt 0:00:07]} bxa3 {[%emt 0:00:25]} 33. bxa3 {[%emt 0:00:03]} Rb3 {[%emt 0:01:00]} 34. d5 {[%emt 0:01:20]} Qc3 {[%emt 0:05:49]} 35. d6 {[%emt 0:00:19]} Rxa3 {[%emt 0:01:34]} 36. Rd1 {[%emt 0:00:15]} Qb3 {[%emt 0:05:59]} 37. Rc2 {[%emt 0:03:35]} g6 {[%emt 0:00:58]} 38. Rdc1 {[%emt 0:04:14]} Qg3+ {[%emt 0:02:27]} 39. Kh1 {[%emt 0:00:10]} g5 {[%emt 0:00:08]} 40. fxg5 {[%emt 0:07:51]} hxg5 {[%emt 0:02:15]} 41. Rf1 {[%emt 0:00:26]} Qd3 {[%emt 0:00:21]} 42. Qxd3 {[%emt 0:01:08]} Rxd3 {[%emt 0:00:07]} 43. Rc7 {[%emt 0:00:01]} Rf8 {[%emt 0:00:17]} 44. Ra7 {[%emt 0:00:21]} Re3 {[%emt 0:01:40]} 45. Ra5 {[%emt 0:00:32]} Kg7 {[%emt 0:02:48]} 46. Ra1 {[%emt 0:00:39]} Rb8 {[%emt 0:01:48]} 47. R1xa4 {[%emt 0:00:26]} f5 {[%emt 0:02:29]} 48. Ra8 {[%emt 0:01:17]} Rb1+ {[%emt 0:01:19]} 49. Kh2 {[%emt 0:00:00]} f4 {[%emt 0:00:41]} 50. R4a7+ {[%emt 0:00:09]} Kh6 {[%emt 0:01:16]} 51. Rf8 {[%emt 0:00:23]} 1-0

[Event "PanAm Intercolleagiate-ch 2019"]
[Site "Charlotte"]
[Date "2019.12.30"]
[Round "6.14"]
[White "Hevia Alejano, Carlos Antonio"]
[Black "Gledura, Benjamin"]
[Result "1-0"]
[ECO "A37"]
[WhiteElo "2465"]
[BlackElo "2626"]
[Annotator "ChessBase"]
[PlyCount "67"]
[EventDate "2019.12.27"]
[EventType "team-tourn"]
[EventCountry "USA"]
[SourceTitle "playchess.com"]
[Source "ChessBase"]
[SourceQuality "1"]
[TimeControl "5400+30"]

1. c4 {[%emt 0:06:16]} g6 {[%emt 0:00:18]} 2. Nc3 {[%emt 0:01:11]} c5 {[%emt 0:00:23]} 3. Nf3 {[%emt 0:03:54]} Bg7 {[%emt 0:00:10]} 4. g3 {[%emt 0:03:22]} Nc6 {[%emt 0:00:40]} 5. Bg2 {[%emt 0:00:07]} d6 {[%emt 0:00:23]} 6. O-O {[%emt 0:02:01]} e6 {[%emt 0:00:22]} 7. d3 {[%emt 0:02:50]} Nge7 {[%emt 0:00:21]} 8. Bd2 {[%emt 0:10:06]} b6 {[%emt 0:02:35]} 9. Qc1 {[%emt 0:00:44]} h6 {[%emt 0:01:03]} 10. Rb1 {[%emt 0:01:43]} Bb7 {[%emt 0:00:24]} 11. a3 {[%emt 0:00:05]} g5 {[%emt 0:01:32]} 12. b4 {[%emt 0:02:27]} Qd7 {[%emt 0:04:28]} 13. Nb5 {[%emt 0:20:52]} Ng6 {[%emt 0:11:34]} 14. Bc3 {[%emt 0:07:38]} e5 {[%emt 0:02:54]} 15. Nd2 {[%emt 0:08:38]} f5 {[%emt 0:02:23]} 16. Bd5 {[%emt 0:00:06]} Nd8 {[%emt 0:04:00]} 17. a4 {[%emt 0:03:20]} h5 {[%emt 0:20:54]} 18. bxc5 {[%emt 0:03:13]} dxc5 {[%emt 0:01:30]} 19. Bxb7 {[%emt 0:00:10]} Nxb7 {[%emt 0:00:08]} 20. Nf3 {[%emt 0:00:35]} f4 {[%emt 0:04:30]} 21. Nxg5 {[%emt 0:01:28]} Bh6 {[%emt 0:07:42]} 22. Bxe5 {[%emt 0:10:19]} Nxe5 {[%emt 0:07:55]} 23. Qxf4 {[%emt 0:00:01]} Qe7 {[%emt 0:00:36]} 24. Qe4 {[%emt 0:03:54]} Bxg5 {[%emt 0:02:15]} 25. f4 {[%emt 0:00:02]} Ng4 {[%emt 0:03:47]} 26. Qc6+ {[%emt 0:01:55]} Kf7 {[%emt 0:11:34]} 27. fxg5+ {[%emt 0:01:29]} Kg7 {[%emt 0:00:01]} 28. Nc7 {[%emt 0:00:51]} Rhc8 {[%emt 0:00:19]} 29. Ne6+ {[%emt 0:01:21]} Kh8 {[%emt 0:00:22]} 30. Qd5 {[%emt 0:00:11]} Re8 {[%emt 0:01:15]} 31. g6 {[%emt 0:00:10]} Nd6 {[%emt 0:08:24]} 32. Qxh5+ {[%emt 0:01:19]} Kg8 {[%emt 0:00:01]} 33. Rf7 {[%emt 0:01:01]} Nf6 {[%emt 0:00:20]} 34. Rxf6 {[%emt 0:00:47]} 1-0

[Event "PanAm Intercolleagiate-ch 2019"]
[Site "Charlotte"]
[Date "2019.12.30"]
[Round "6.16"]
[White "Kambrath, Yannick"]
[Black "Burke, John M"]
[Result "1-0"]
[ECO "A28"]
[WhiteElo "2371"]
[BlackElo "2551"]
[Annotator "ChessBase"]
[PlyCount "61"]
[EventDate "2019.12.27"]
[EventType "team-tourn"]
[EventCountry "USA"]
[SourceTitle "playchess.com"]
[Source "ChessBase"]
[SourceQuality "1"]
[TimeControl "5400+30"]

1. c4 {[%emt 0:01:52]} e5 {[%emt 0:00:00]} 2. Nc3 {[%emt 0:00:22]} Nf6 {[%emt 0:00:00]} 3. Nf3 {[%emt 0:00:16]} Nc6 {[%emt 0:00:00]} 4. e3 {[%emt 0:00:18]} Bb4 {[%emt 0:00:41]} 5. Qc2 {[%emt 0:00:24]} Bxc3 {[%emt 0:00:10]} 6. bxc3 {[%emt 0:00:21]} d6 {[%emt 0:01:04]} 7. d3 {[%emt 0:00:35]} O-O {[%emt 0:01:00]} 8. Be2 {[%emt 0:00:53]} b6 {[%emt 0:08:09]} 9. O-O {[%emt 0:01:17]} Bb7 {[%emt 0:00:28]} 10. e4 {[%emt 0:00:52]} Nd7 {[%emt 0:04:28]} 11. Bg5 {[%emt 0:11:38]} f6 {[%emt 0:05:22]} 12. Be3 {[%emt 0:00:58]} f5 {[%emt 0:09:29]} 13. exf5 {[%emt 0:05:15]} Rxf5 {[%emt 0:01:20]} 14. d4 {[%emt 0:06:44]} Qf8 {[%emt 0:11:26]} 15. d5 {[%emt 0:13:32]} Na5 {[%emt 0:15:17]} 16. Ng5 {[%emt 0:02:43]} g6 {[%emt 0:00:57]} 17. Ne6 {[%emt 0:06:14]} Qe7 {[%emt 0:01:22]} 18. f4 {[%emt 0:04:01]} Nf8 {[%emt 0:05:05]} 19. g4 {[%emt 0:14:04]} Rf7 {[%emt 0:02:33]} 20. f5 {[%emt 0:05:34]} gxf5 {[%emt 0:00:47]} 21. Bg5 {[%emt 0:00:39]} Qd7 {[%emt 0:00:19]} 22. gxf5 {[%emt 0:02:18]} b5 {[%emt 0:03:04]} 23. Rf3 {[%emt 0:03:49]} Nxc4 {[%emt 0:05:15]} 24. Rg3 {[%emt 0:10:52]} Bxd5 {[%emt 0:02:59]} 25. Nxf8 {[%emt 0:02:16]} Kxf8 {[%emt 0:02:04]} 26. Bh6+ {[%emt 0:00:01]} Ke7 {[%emt 0:00:23]} 27. f6+ {[%emt 0:00:45]} Rxf6 {[%emt 0:00:17]} 28. Qxh7+ {[%emt 0:01:10]} Kd8 {[%emt 0:09:11]} 29. Qh8+ {[%emt 0:01:03]} Ke7 {[%emt 0:01:25]} 30. Qg7+ {[%emt 0:01:05]} Bf7 {[%emt 0:02:59]} 31. Bg5 {[%emt 0:00:37]} 1-0